[Event "Titled Tuesday Blitz January 31 Early 2023"]
[White "Kozin, Yuri"]
[Black "Sychev, Klementy"]
[WhiteFideId "4129920"]
[BlackFideId "4114060"]
[WhiteElo "2251"]
[BlackElo "2547"]
[Result "1-0"]
[Round "01"]
[TimeControl "180+2"]
[Date "2023.01.31"]
[WhiteClock "0:00:28"]
[BlackClock "0:00:07"]

1. e4 {[%clk 0:03:00]}  e5 {[%clk 0:02:57]} 2. Nf3 {[%clk 0:03:00]}  Nc6 {[%clk 0:02:58]} 3. Bb5 {[%clk 0:03:01]}  a6 {[%clk 0:02:58]} 4. Ba4 {[%clk 0:03:01]}  b5 {[%clk 0:02:58]} 5. Bb3 {[%clk 0:03:01]}  Na5 {[%clk 0:02:58]} 6. d4 {[%clk 0:03:01]}  exd4 {[%clk 0:02:58]} 7. Nxd4 {[%clk 0:02:51]}  Bb7 {[%clk 0:02:58]} 8. a4 {[%clk 0:02:28]}  c5 {[%clk 0:02:26]} 9. Nf5 {[%clk 0:02:23]}  c4 {[%clk 0:02:25]} 10. Ba2 {[%clk 0:02:23]}  d5 {[%clk 0:02:11]} 11. exd5 {[%clk 0:02:16]}  Qxd5 {[%clk 0:02:06]} 12. Qxd5 {[%clk 0:02:15]}  Bxd5 {[%clk 0:02:05]} 13. O-O {[%clk 0:02:15]}  Nf6 {[%clk 0:01:56]} 14. axb5 {[%clk 0:02:12]}  axb5 {[%clk 0:01:56]} 15. Nc3 {[%clk 0:02:12]}  Bc6 {[%clk 0:01:49]} 16. Nd4 {[%clk 0:02:12]}  b4 {[%clk 0:01:48]} 17. Ncb5 {[%clk 0:02:09]}  O-O-O {[%clk 0:01:26]} 18. Nxc6 {[%clk 0:01:55]}  Nxc6 {[%clk 0:01:27]} 19. Bxc4 {[%clk 0:01:55]}  Bc5 {[%clk 0:01:26]} 20. Bxf7 {[%clk 0:01:50]}  Rhf8 {[%clk 0:01:20]} 21. Be6+ {[%clk 0:01:45]}  Kb7 {[%clk 0:01:20]} 22. Bg5 {[%clk 0:01:20]}  Kb6 {[%clk 0:01:18]} 23. c4 {[%clk 0:01:15]}  h6 {[%clk 0:01:17]} 24. Bxf6 {[%clk 0:01:11]}  Rxf6 {[%clk 0:01:17]} 25. Bd5 {[%clk 0:01:12]}  Rdf8 {[%clk 0:01:13]} 26. Bxc6 {[%clk 0:01:11]}  Rxf2 {[%clk 0:01:06]} 27. Rxf2 {[%clk 0:01:05]}  Bxf2+ {[%clk 0:00:58]} 28. Kh1 {[%clk 0:01:01]}  Kxc6 {[%clk 0:00:56]} 29. Rf1 {[%clk 0:00:59]}  Re8 {[%clk 0:00:50]} 30. g3 {[%clk 0:00:52]}  Re2 {[%clk 0:00:46]} 31. b3 {[%clk 0:00:52]}  Rb2 {[%clk 0:00:41]} 32. g4 {[%clk 0:00:41]}  g6 {[%clk 0:00:15]} 33. h3 {[%clk 0:00:41]}  g5 {[%clk 0:00:12]} 34. Kg2 {[%clk 0:00:32]}  Be3+ {[%clk 0:00:07]} 35. Kf3 {[%clk 0:00:28]}  Rxb3 {[%clk 0:00:07]} 36. Ke4 {[%clk 0:00:28]} 1-0


[Site "https://www.chess.com"]

[Event "Titled Tuesday Blitz January 31 Early 2023"]
[White "Mitrabha, Guha"]
[Black "Zong, Davis"]
[WhiteFideId "5057000"]
[BlackFideId "30903955"]
[WhiteElo "2507"]
[BlackElo "2151"]
[Result "1-0"]
[Round "01"]
[TimeControl "180+2"]
[Date "2023.01.31"]
[WhiteClock "0:01:20"]
[BlackClock "0:00:12"]

1. Nf3 {[%clk 0:02:38]}  d5 {[%clk 0:02:58]} 2. d4 {[%clk 0:02:39]}  Nf6 {[%clk 0:02:58]} 3. Bf4 {[%clk 0:02:39]}  c5 {[%clk 0:02:57]} 4. e3 {[%clk 0:02:39]}  Nc6 {[%clk 0:02:57]} 5. Nbd2 {[%clk 0:02:38]}  Bg4 {[%clk 0:02:51]} 6. c3 {[%clk 0:02:37]}  e6 {[%clk 0:02:50]} 7. Qa4 {[%clk 0:02:36]}  Nd7 {[%clk 0:02:30]} 8. Bb5 {[%clk 0:02:32]}  Qb6 {[%clk 0:02:07]} 9. Ne5 {[%clk 0:02:13]}  Ndxe5 {[%clk 0:01:53]} 10. Bxe5 {[%clk 0:02:12]}  c4 {[%clk 0:01:41]} 11. b3 {[%clk 0:02:09]}  cxb3 {[%clk 0:01:34]} 12. axb3 {[%clk 0:02:09]}  f6 {[%clk 0:01:28]} 13. Bg3 {[%clk 0:02:08]}  Be7 {[%clk 0:01:22]} 14. c4 {[%clk 0:02:04]}  O-O {[%clk 0:00:57]} 15. c5 {[%clk 0:02:03]}  Qd8 {[%clk 0:00:57]} 16. Bxc6 {[%clk 0:02:03]}  bxc6 {[%clk 0:00:58]} 17. Qxc6 {[%clk 0:02:04]}  Qc8 {[%clk 0:00:30]} 18. Qxc8 {[%clk 0:01:53]}  Rfxc8 {[%clk 0:00:31]} 19. f3 {[%clk 0:01:50]}  Bf5 {[%clk 0:00:30]} 20. Kf2 {[%clk 0:01:35]}  Kf7 {[%clk 0:00:28]} 21. Ra3 {[%clk 0:01:34]}  e5 {[%clk 0:00:26]} 22. Rha1 {[%clk 0:01:33]}  Rc7 {[%clk 0:00:19]} 23. b4 {[%clk 0:01:33]}  Rb7 {[%clk 0:00:18]} 24. dxe5 {[%clk 0:01:28]}  Rxb4 {[%clk 0:00:16]} 25. exf6 {[%clk 0:01:28]}  Bxc5 {[%clk 0:00:15]} 26. fxg7 {[%clk 0:01:26]}  Kxg7 {[%clk 0:00:16]} 27. Nb3 {[%clk 0:01:24]}  Be7 {[%clk 0:00:13]} 28. Nd4 {[%clk 0:01:20]}  Rb2+ {[%clk 0:00:12]} 29. Kg1 {[%clk 0:01:20]}  Bd3 {[%clk 0:00:12]} 30. Rxd3 {[%clk 0:01:20]} 1-0


[Site "https://www.chess.com"]

[Event "Titled Tuesday Blitz January 31 Early 2023"]
[White "Astafurov, Arseniy"]
[Black "Babazada, Khazar"]
[WhiteFideId "24175218"]
[BlackFideId "13413554"]
[WhiteElo "2263"]
[BlackElo "2474"]
[Result "1/2-1/2"]
[Round "01"]
[TimeControl "180+2"]
[Date "2023.01.31"]
[WhiteClock "0:00:39"]
[BlackClock "0:00:52"]

1. c4 {[%clk 0:02:59]}  g6 {[%clk 0:02:59]} 2. Nc3 {[%clk 0:02:59]}  Bg7 {[%clk 0:03:00]} 3. Nf3 {[%clk 0:03:00]}  Nf6 {[%clk 0:02:54]} 4. g3 {[%clk 0:03:00]}  O-O {[%clk 0:02:55]} 5. Bg2 {[%clk 0:03:01]}  c5 {[%clk 0:02:53]} 6. d4 {[%clk 0:03:01]}  cxd4 {[%clk 0:02:53]} 7. Nxd4 {[%clk 0:03:01]}  Nc6 {[%clk 0:02:53]} 8. O-O {[%clk 0:03:01]}  d6 {[%clk 0:02:47]} 9. Nxc6 {[%clk 0:03:02]}  bxc6 {[%clk 0:02:47]} 10. Bxc6 {[%clk 0:03:02]}  Bh3 {[%clk 0:02:47]} 11. Bxa8 {[%clk 0:03:02]}  Qxa8 {[%clk 0:02:46]} 12. f3 {[%clk 0:03:03]}  Bxf1 {[%clk 0:02:44]} 13. Kxf1 {[%clk 0:03:04]}  Rc8 {[%clk 0:02:44]} 14. Qd3 {[%clk 0:02:45]}  Nd7 {[%clk 0:02:34]} 15. Bf4 {[%clk 0:02:19]}  Nc5 {[%clk 0:02:27]} 16. Qd5 {[%clk 0:02:08]}  Qb8 {[%clk 0:02:25]} 17. Qd2 {[%clk 0:01:39]}  Bxc3 {[%clk 0:02:16]} 18. Qxc3 {[%clk 0:01:25]}  Na4 {[%clk 0:02:16]} 19. Qb3 {[%clk 0:01:26]}  Nb6 {[%clk 0:01:58]} 20. Rc1 {[%clk 0:01:18]}  Qb7 {[%clk 0:01:54]} 21. Qd3 {[%clk 0:01:09]}  Qa6 {[%clk 0:01:44]} 22. b3 {[%clk 0:00:54]}  Qxa2 {[%clk 0:01:39]} 23. Qc3 {[%clk 0:00:54]}  Nd5 {[%clk 0:01:37]} 24. Qa1 {[%clk 0:00:40]}  Qxa1 {[%clk 0:01:34]} 25. Rxa1 {[%clk 0:00:41]}  Nxf4 {[%clk 0:01:33]} 26. gxf4 {[%clk 0:00:42]}  Rb8 {[%clk 0:01:33]} 27. Rxa7 {[%clk 0:00:39]}  Rxb3 {[%clk 0:01:15]} 28. Rxe7 {[%clk 0:00:39]}  Kg7 {[%clk 0:01:00]} 29. Kf2 {[%clk 0:00:39]}  Rc3 {[%clk 0:00:59]} 30. Re4 {[%clk 0:00:39]}  Kf6 {[%clk 0:00:59]} 31. Kg3 {[%clk 0:00:40]}  h5 {[%clk 0:00:58]} 32. Kf2 {[%clk 0:00:39]}  Rc1 {[%clk 0:00:52]} 1/2-1/2


[Site "https://www.chess.com"]

[Event "Titled Tuesday Blitz January 31 Early 2023"]
[White "Iljin, Timofey"]
[Black "Grandelius, Nils"]
[WhiteFideId "14110180"]
[BlackFideId "1710400"]
[WhiteElo "2329"]
[BlackElo "2664"]
[Result "0-1"]
[Round "01"]
[TimeControl "180+2"]
[Date "2023.01.31"]
[WhiteClock "0:00:05"]
[BlackClock "0:00:24"]

1. e4 {[%clk 0:03:00]}  c5 {[%clk 0:02:50]} 2. c3 {[%clk 0:02:59]}  d5 {[%clk 0:02:49]} 3. exd5 {[%clk 0:03:00]}  Nf6 {[%clk 0:02:49]} 4. d4 {[%clk 0:03:01]}  cxd4 {[%clk 0:02:49]} 5. cxd4 {[%clk 0:03:01]}  Nxd5 {[%clk 0:02:49]} 6. Nf3 {[%clk 0:03:02]}  g6 {[%clk 0:02:49]} 7. Nc3 {[%clk 0:03:02]}  Bg7 {[%clk 0:02:50]} 8. Bc4 {[%clk 0:03:02]}  Nxc3 {[%clk 0:02:48]} 9. bxc3 {[%clk 0:03:03]}  Qc7 {[%clk 0:02:44]} 10. Qe2 {[%clk 0:03:03]}  Be6 {[%clk 0:02:34]} 11. Nd2 {[%clk 0:02:14]}  Bxc4 {[%clk 0:02:31]} 12. Qxc4 {[%clk 0:02:14]}  Qxc4 {[%clk 0:02:29]} 13. Nxc4 {[%clk 0:02:15]}  O-O {[%clk 0:02:30]} 14. Bd2 {[%clk 0:02:08]}  Rc8 {[%clk 0:02:28]} 15. Ne3 {[%clk 0:02:01]}  Nc6 {[%clk 0:02:29]} 16. O-O {[%clk 0:02:00]}  e6 {[%clk 0:02:29]} 17. Rab1 {[%clk 0:01:58]}  b6 {[%clk 0:02:28]} 18. Rfd1 {[%clk 0:01:52]}  Na5 {[%clk 0:02:28]} 19. Kf1 {[%clk 0:01:44]}  Bh6 {[%clk 0:02:12]} 20. Ke2 {[%clk 0:01:34]}  Bxe3 {[%clk 0:02:12]} 21. fxe3 {[%clk 0:01:35]}  Rc4 {[%clk 0:02:09]} 22. Rb4 {[%clk 0:01:23]}  Rac8 {[%clk 0:02:07]} 23. Kd3 {[%clk 0:01:23]}  Rxb4 {[%clk 0:01:49]} 24. cxb4 {[%clk 0:01:23]}  Nc4 {[%clk 0:01:49]} 25. Rc1 {[%clk 0:01:01]}  b5 {[%clk 0:01:50]} 26. e4 {[%clk 0:01:01]}  f6 {[%clk 0:01:49]} 27. Ke2 {[%clk 0:00:56]}  Kf7 {[%clk 0:01:46]} 28. a4 {[%clk 0:00:55]}  bxa4 {[%clk 0:01:43]} 29. Ra1 {[%clk 0:00:52]}  Nb6 {[%clk 0:01:41]} 30. Kd3 {[%clk 0:00:51]}  a6 {[%clk 0:01:35]} 31. b5 {[%clk 0:00:35]}  axb5 {[%clk 0:01:33]} 32. Rb1 {[%clk 0:00:35]}  Ra8 {[%clk 0:01:09]} 33. Rxb5 {[%clk 0:00:35]}  Nd7 {[%clk 0:01:05]} 34. Ba5 {[%clk 0:00:22]}  Ke7 {[%clk 0:00:57]} 35. Kc4 {[%clk 0:00:18]}  Kd6 {[%clk 0:00:54]} 36. Kb4 {[%clk 0:00:18]}  e5 {[%clk 0:00:47]} 37. d5 {[%clk 0:00:11]}  f5 {[%clk 0:00:45]} 38. exf5 {[%clk 0:00:05]}  gxf5 {[%clk 0:00:46]} 39. Kxa4 {[%clk 0:00:06]}  Nf6 {[%clk 0:00:41]} 40. Rb6+ {[%clk 0:00:04]}  Ke7 {[%clk 0:00:42]} 41. d6+ {[%clk 0:00:03]}  Kd7 {[%clk 0:00:42]} 42. Kb5 {[%clk 0:00:03]}  Nd5 {[%clk 0:00:36]} 43. Rb7+ {[%clk 0:00:03]}  Kxd6 {[%clk 0:00:37]} 44. Rxh7 {[%clk 0:00:03]}  e4 {[%clk 0:00:35]} 45. Be1 {[%clk 0:00:03]}  Ke5 {[%clk 0:00:33]} 46. h4 {[%clk 0:00:03]}  Ra1 {[%clk 0:00:29]} 47. Bf2 {[%clk 0:00:02]}  Ra2 {[%clk 0:00:29]} 48. Bc5 {[%clk 0:00:01]}  Rb2+ {[%clk 0:00:26]} 49. Kc6 {[%clk 0:00:01]}  Rxg2 {[%clk 0:00:24]} 50. h5 {[%clk 0:00:02]}  Nf6 {[%clk 0:00:24]} 51. Re7+ {[%clk 0:00:02]}  Kf4 {[%clk 0:00:24]} 52. h6 {[%clk 0:00:01]}  Rg6 {[%clk 0:00:21]} 53. h7 {[%clk 0:00:02]}  Nxh7+ {[%clk 0:00:21]} 54. Kd7 {[%clk 0:00:02]}  Nf6+ {[%clk 0:00:21]} 55. Kd8 {[%clk 0:00:03]}  Rg8+ {[%clk 0:00:21]} 56. Kc7 {[%clk 0:00:03]}  Nd5+ {[%clk 0:00:22]} 57. Kd7 {[%clk 0:00:02]}  Nxe7 {[%clk 0:00:22]} 58. Bxe7 {[%clk 0:00:03]}  Kf3 {[%clk 0:00:22]} 59. Bc5 {[%clk 0:00:03]}  f4 {[%clk 0:00:23]} 60. Ke6 {[%clk 0:00:04]}  e3 {[%clk 0:00:23]} 61. Kf7 {[%clk 0:00:05]}  Ra8 {[%clk 0:00:24]} 0-1


[Site "https://www.chess.com"]

[Event "Titled Tuesday Blitz January 31 Early 2023"]
[White "Arencibia Monduy, Antonio"]
[Black "Madaminov, Mukhiddin"]
[WhiteFideId "3507939"]
[BlackFideId "14210703"]
[WhiteElo "2122"]
[BlackElo "2422"]
[Result "0-1"]
[Round "01"]
[TimeControl "180+2"]
[Date "2023.01.31"]
[WhiteClock "0:00:09"]
[BlackClock "0:00:10"]

1. e4 {[%clk 0:02:59]}  e6 {[%clk 0:03:00]} 2. d4 {[%clk 0:02:59]}  d5 {[%clk 0:03:01]} 3. e5 {[%clk 0:02:59]}  c5 {[%clk 0:03:01]} 4. c3 {[%clk 0:03:00]}  Nc6 {[%clk 0:03:01]} 5. Nf3 {[%clk 0:03:00]}  Qb6 {[%clk 0:03:02]} 6. Bd3 {[%clk 0:02:54]}  cxd4 {[%clk 0:03:02]} 7. O-O {[%clk 0:02:55]}  Bd7 {[%clk 0:03:01]} 8. a3 {[%clk 0:02:52]}  Rc8 {[%clk 0:02:58]} 9. b4 {[%clk 0:02:28]}  dxc3 {[%clk 0:02:53]} 10. Nxc3 {[%clk 0:02:27]}  Nxb4 {[%clk 0:02:53]} 11. axb4 {[%clk 0:02:22]}  Rxc3 {[%clk 0:02:49]} 12. Be3 {[%clk 0:02:14]}  Qxb4 {[%clk 0:02:48]} 13. Rxa7 {[%clk 0:01:51]}  Ne7 {[%clk 0:02:00]} 14. Ra8+ {[%clk 0:01:14]}  Rc8 {[%clk 0:01:57]} 15. Bd2 {[%clk 0:01:14]}  Qb6 {[%clk 0:01:53]} 16. Rxc8+ {[%clk 0:01:12]}  Nxc8 {[%clk 0:01:47]} 17. Qc2 {[%clk 0:01:12]}  Be7 {[%clk 0:01:28]} 18. Bxh7 {[%clk 0:01:07]}  Qc6 {[%clk 0:01:01]} 19. Qb1 {[%clk 0:01:07]}  Nb6 {[%clk 0:00:36]} 20. Bd3 {[%clk 0:00:58]}  Nc4 {[%clk 0:00:36]} 21. Bf4 {[%clk 0:00:47]}  Bc5 {[%clk 0:00:32]} 22. Qa2 {[%clk 0:00:44]}  b5 {[%clk 0:00:33]} 23. h4 {[%clk 0:00:40]}  b4 {[%clk 0:00:32]} 24. Ng5 {[%clk 0:00:33]}  Na3 {[%clk 0:00:28]} 25. Qe2 {[%clk 0:00:31]}  Bd4 {[%clk 0:00:26]} 26. Qf3 {[%clk 0:00:30]}  Rf8 {[%clk 0:00:14]} 27. Rc1 {[%clk 0:00:30]}  Bc3 {[%clk 0:00:14]} 28. Nh7 {[%clk 0:00:30]}  Rh8 {[%clk 0:00:13]} 29. Bg5 {[%clk 0:00:30]}  Nc4 {[%clk 0:00:12]} 30. Nf6+ {[%clk 0:00:29]}  Kf8 {[%clk 0:00:10]} 31. Nxd7+ {[%clk 0:00:28]}  Qxd7 {[%clk 0:00:11]} 32. Bxc4 {[%clk 0:00:29]}  dxc4 {[%clk 0:00:12]} 33. Qa8+ {[%clk 0:00:27]}  Qe8 {[%clk 0:00:12]} 34. Qa5 {[%clk 0:00:26]}  Kg8 {[%clk 0:00:12]} 35. Qc5 {[%clk 0:00:26]}  f6 {[%clk 0:00:12]} 36. exf6 {[%clk 0:00:25]}  gxf6 {[%clk 0:00:13]} 37. Bf4 {[%clk 0:00:25]}  Rxh4 {[%clk 0:00:13]} 38. Bg3 {[%clk 0:00:25]}  Re4 {[%clk 0:00:13]} 39. Kf1 {[%clk 0:00:21]}  Qd7 {[%clk 0:00:13]} 40. Kg1 {[%clk 0:00:20]}  Re1+ {[%clk 0:00:12]} 41. Rxe1 {[%clk 0:00:21]}  Bxe1 {[%clk 0:00:13]} 42. Qxc4 {[%clk 0:00:21]}  Bc3 {[%clk 0:00:13]} 43. Qg4+ {[%clk 0:00:21]}  Kf8 {[%clk 0:00:13]} 44. Bf4 {[%clk 0:00:21]}  Qd5 {[%clk 0:00:06]} 45. Bh6+ {[%clk 0:00:21]}  Ke7 {[%clk 0:00:07]} 46. Qg7+ {[%clk 0:00:21]}  Kd6 {[%clk 0:00:07]} 47. Qf8+ {[%clk 0:00:21]}  Ke5 {[%clk 0:00:07]} 48. Bf4+ {[%clk 0:00:18]}  Ke4 {[%clk 0:00:08]} 49. Be3 {[%clk 0:00:18]}  Kd3 {[%clk 0:00:08]} 50. Qg8 {[%clk 0:00:16]}  Kc2 {[%clk 0:00:08]} 51. Qg6+ {[%clk 0:00:16]}  f5 {[%clk 0:00:09]} 52. Qe8 {[%clk 0:00:12]}  b3 {[%clk 0:00:09]} 53. Qa4 {[%clk 0:00:12]}  Qa5 {[%clk 0:00:09]} 54. Qd7 {[%clk 0:00:09]}  b2 {[%clk 0:00:09]} 55. Qxe6 {[%clk 0:00:08]}  b1=Q+ {[%clk 0:00:10]} 56. Kh2 {[%clk 0:00:09]}  Qe5+ {[%clk 0:00:10]} 0-1


[Site "https://www.chess.com"]

[Event "Titled Tuesday Blitz January 31 Early 2023"]
[White "Manukian, Artak"]
[Black "Yeletsky, Ivan"]
[WhiteFideId "13301373"]
[BlackFideId "24180327"]
[WhiteElo "2196"]
[BlackElo "2494"]
[Result "0-1"]
[Round "01"]
[TimeControl "180+2"]
[Date "2023.01.31"]
[WhiteClock "0:01:50"]
[BlackClock "0:02:02"]

1. e4 {[%clk 0:03:00]}  Nf6 {[%clk 0:02:59]} 2. Nc3 {[%clk 0:03:00]}  d5 {[%clk 0:02:58]} 3. exd5 {[%clk 0:03:01]}  Nxd5 {[%clk 0:02:58]} 4. Bc4 {[%clk 0:03:01]}  c6 {[%clk 0:02:55]} 5. Qf3 {[%clk 0:03:01]}  e6 {[%clk 0:02:51]} 6. d4 {[%clk 0:03:00]}  Be7 {[%clk 0:02:48]} 7. Nge2 {[%clk 0:03:00]}  O-O {[%clk 0:02:48]} 8. h4 {[%clk 0:03:00]}  b5 {[%clk 0:02:38]} 9. Bd3 {[%clk 0:02:59]}  Nb4 {[%clk 0:02:38]} 10. Bg5 {[%clk 0:02:54]}  Nd7 {[%clk 0:02:27]} 11. O-O-O {[%clk 0:02:52]}  Nf6 {[%clk 0:02:24]} 12. Ne4 {[%clk 0:02:28]}  Nxa2+ {[%clk 0:02:22]} 13. Kb1 {[%clk 0:02:27]}  Nb4 {[%clk 0:02:23]} 14. h5 {[%clk 0:01:57]}  Nxe4 {[%clk 0:02:07]} 15. Qxe4 {[%clk 0:01:53]}  f5 {[%clk 0:02:06]} 16. Bxe7 {[%clk 0:01:52]}  fxe4 {[%clk 0:02:02]} 17. Bxd8 {[%clk 0:01:51]}  exd3 {[%clk 0:02:03]} 18. Be7 {[%clk 0:01:50]}  dxc2+ {[%clk 0:02:02]} 0-1


[Site "https://www.chess.com"]

[Event "Titled Tuesday Blitz January 31 Early 2023"]
[White "Ibarra Jerez, Jose Carlos"]
[Black "Biastoch, Bennet"]
[WhiteFideId "2226332"]
[BlackFideId "12939889"]
[WhiteElo "2563"]
[BlackElo "2257"]
[Result "0-1"]
[Round "01"]
[TimeControl "180+2"]
[Date "2023.01.31"]
[WhiteClock "0:00:08"]
[BlackClock "0:00:28"]

1. e4 {[%clk 0:02:56]}  c5 {[%clk 0:02:59]} 2. Nc3 {[%clk 0:02:55]}  a6 {[%clk 0:02:59]} 3. g4 {[%clk 0:02:55]}  b5 {[%clk 0:02:58]} 4. Bg2 {[%clk 0:02:55]}  Bb7 {[%clk 0:02:57]} 5. d3 {[%clk 0:02:55]}  e6 {[%clk 0:02:57]} 6. Nh3 {[%clk 0:02:54]}  Nc6 {[%clk 0:02:51]} 7. O-O {[%clk 0:02:53]}  h5 {[%clk 0:02:50]} 8. g5 {[%clk 0:02:53]}  Nge7 {[%clk 0:02:49]} 9. f4 {[%clk 0:02:52]}  Qc7 {[%clk 0:02:48]} 10. f5 {[%clk 0:02:45]}  O-O-O {[%clk 0:02:38]} 11. g6 {[%clk 0:02:38]}  exf5 {[%clk 0:02:07]} 12. Ng5 {[%clk 0:02:01]}  Ne5 {[%clk 0:02:02]} 13. gxf7 {[%clk 0:01:43]}  b4 {[%clk 0:01:55]} 14. Nd5 {[%clk 0:01:40]}  Nxd5 {[%clk 0:01:46]} 15. exd5 {[%clk 0:01:41]}  g6 {[%clk 0:01:42]} 16. Bf4 {[%clk 0:01:38]}  Bd6 {[%clk 0:01:42]} 17. Qd2 {[%clk 0:01:36]}  Ng4 {[%clk 0:01:41]} 18. h3 {[%clk 0:01:32]}  Ne5 {[%clk 0:01:33]} 19. Rae1 {[%clk 0:01:31]}  Rhf8 {[%clk 0:01:32]} 20. d4 {[%clk 0:01:11]}  Nxf7 {[%clk 0:01:31]} 21. Nxf7 {[%clk 0:01:05]}  Rxf7 {[%clk 0:01:32]} 22. Bxd6 {[%clk 0:01:00]}  Qxd6 {[%clk 0:01:31]} 23. dxc5 {[%clk 0:01:00]}  Qxc5+ {[%clk 0:01:32]} 24. Kh1 {[%clk 0:01:01]}  a5 {[%clk 0:01:26]} 25. Rf4 {[%clk 0:00:55]}  g5 {[%clk 0:01:20]} 26. Rd4 {[%clk 0:00:48]}  f4 {[%clk 0:01:20]} 27. c3 {[%clk 0:00:46]}  f3 {[%clk 0:01:17]} 28. Bf1 {[%clk 0:00:46]}  Rf4 {[%clk 0:01:05]} 29. Rxf4 {[%clk 0:00:43]}  gxf4 {[%clk 0:01:06]} 30. cxb4 {[%clk 0:00:39]}  Qxd5 {[%clk 0:01:01]} 31. Rc1+ {[%clk 0:00:39]}  Kb8 {[%clk 0:01:01]} 32. Qxf4+ {[%clk 0:00:40]}  d6 {[%clk 0:00:57]} 33. Rc5 {[%clk 0:00:28]}  Qd1 {[%clk 0:00:49]} 34. Rc1 {[%clk 0:00:25]}  Qd5 {[%clk 0:00:49]} 35. Bc4 {[%clk 0:00:21]}  Qc6 {[%clk 0:00:37]} 36. b5 {[%clk 0:00:20]}  Qd7 {[%clk 0:00:34]} 37. Kh2 {[%clk 0:00:17]}  Qg7 {[%clk 0:00:30]} 38. Qd2 {[%clk 0:00:13]}  Qe5+ {[%clk 0:00:29]} 39. Kh1 {[%clk 0:00:13]}  f2+ {[%clk 0:00:28]} 40. Bd5 {[%clk 0:00:08]}  Bxd5+ {[%clk 0:00:28]} 0-1


[Site "https://www.chess.com"]

[Event "Titled Tuesday Blitz January 31 Early 2023"]
[White "Grigoriants, Sergey"]
[Black "Nguyen Hong Nhung"]
[WhiteFideId "4130804"]
[BlackFideId "12412201"]
[WhiteElo "2562"]
[BlackElo "2003"]
[Result "1-0"]
[Round "01"]
[TimeControl "180+2"]
[Date "2023.01.31"]
[WhiteClock "0:00:07"]
[BlackClock "0:00:05"]

1. d4 {[%clk 0:02:58]}  f5 {[%clk 0:02:58]} 2. Nf3 {[%clk 0:02:57]}  Nf6 {[%clk 0:02:58]} 3. g3 {[%clk 0:02:57]}  g6 {[%clk 0:02:58]} 4. Bg2 {[%clk 0:02:57]}  Bg7 {[%clk 0:02:59]} 5. O-O {[%clk 0:02:57]}  O-O {[%clk 0:03:00]} 6. b3 {[%clk 0:02:55]}  d6 {[%clk 0:03:00]} 7. Bb2 {[%clk 0:02:54]}  Ne4 {[%clk 0:03:00]} 8. Nbd2 {[%clk 0:02:51]}  Nc6 {[%clk 0:02:58]} 9. e3 {[%clk 0:02:49]}  Nxd2 {[%clk 0:02:53]} 10. Qxd2 {[%clk 0:02:45]}  e5 {[%clk 0:02:53]} 11. d5 {[%clk 0:02:28]}  Ne7 {[%clk 0:02:43]} 12. Ng5 {[%clk 0:02:22]}  h6 {[%clk 0:02:28]} 13. Ne6 {[%clk 0:02:22]}  Bxe6 {[%clk 0:02:29]} 14. dxe6 {[%clk 0:02:23]}  Qc8 {[%clk 0:02:24]} 15. e4 {[%clk 0:01:52]}  Rb8 {[%clk 0:01:57]} 16. exf5 {[%clk 0:01:47]}  gxf5 {[%clk 0:01:58]} 17. Qa5 {[%clk 0:01:43]}  Qxe6 {[%clk 0:01:38]} 18. Qxa7 {[%clk 0:01:33]}  d5 {[%clk 0:01:24]} 19. Rfe1 {[%clk 0:01:24]}  Nc6 {[%clk 0:01:14]} 20. Qc5 {[%clk 0:01:21]}  e4 {[%clk 0:01:14]} 21. Bxg7 {[%clk 0:01:20]}  Kxg7 {[%clk 0:01:15]} 22. Rad1 {[%clk 0:01:20]}  Rbd8 {[%clk 0:01:14]} 23. b4 {[%clk 0:01:01]}  Qd6 {[%clk 0:01:04]} 24. Qxd6 {[%clk 0:00:36]}  Rxd6 {[%clk 0:01:05]} 25. a3 {[%clk 0:00:35]}  Ne5 {[%clk 0:00:57]} 26. a4 {[%clk 0:00:27]}  Ra8 {[%clk 0:00:54]} 27. Ra1 {[%clk 0:00:26]}  Rad8 {[%clk 0:00:44]} 28. c3 {[%clk 0:00:25]}  Rc6 {[%clk 0:00:40]} 29. Ra3 {[%clk 0:00:21]}  Kf6 {[%clk 0:00:31]} 30. a5 {[%clk 0:00:21]}  Nc4 {[%clk 0:00:24]} 31. Rb3 {[%clk 0:00:21]}  Rcd6 {[%clk 0:00:20]} 32. Rd1 {[%clk 0:00:20]}  Ke5 {[%clk 0:00:19]} 33. f4+ {[%clk 0:00:19]}  Kf6 {[%clk 0:00:16]} 34. Kf2 {[%clk 0:00:18]}  d4 {[%clk 0:00:14]} 35. Rxd4 {[%clk 0:00:18]}  Rxd4 {[%clk 0:00:15]} 36. cxd4 {[%clk 0:00:19]}  Rxd4 {[%clk 0:00:16]} 37. Rc3 {[%clk 0:00:18]}  Rd2+ {[%clk 0:00:11]} 38. Ke1 {[%clk 0:00:14]}  Rd4 {[%clk 0:00:08]} 39. Bf1 {[%clk 0:00:13]}  Nb2 {[%clk 0:00:05]} 40. b5 {[%clk 0:00:13]}  Rd7 {[%clk 0:00:04]} 41. a6 {[%clk 0:00:12]}  bxa6 {[%clk 0:00:03]} 42. bxa6 {[%clk 0:00:13]}  Na4 {[%clk 0:00:04]} 43. Rc6+ {[%clk 0:00:13]}  Kg7 {[%clk 0:00:04]} 44. Bb5 {[%clk 0:00:13]}  Nb2 {[%clk 0:00:01]} 45. Rc2 {[%clk 0:00:12]}  Rd1+ {[%clk 0:00:01]} 46. Ke2 {[%clk 0:00:12]}  Rb1 {[%clk 0:00:02]} 47. a7 {[%clk 0:00:12]}  Ra1 {[%clk 0:00:02]} 48. Rxb2 {[%clk 0:00:11]}  Rxa7 {[%clk 0:00:03]} 49. Rc2 {[%clk 0:00:10]}  Kf6 {[%clk 0:00:03]} 50. Rc6+ {[%clk 0:00:10]}  Kg7 {[%clk 0:00:04]} 51. Bc4 {[%clk 0:00:09]}  Ra5 {[%clk 0:00:04]} 52. Rxc7+ {[%clk 0:00:09]}  Kg6 {[%clk 0:00:05]} 53. Rc6+ {[%clk 0:00:08]}  Kh5 {[%clk 0:00:05]} 54. h3 {[%clk 0:00:09]}  Ra7 {[%clk 0:00:05]} 55. Ke3 {[%clk 0:00:08]}  Rg7 {[%clk 0:00:05]} 56. Be2+ {[%clk 0:00:07]} 1-0


[Site "https://www.chess.com"]